[Event "WYCC 2018 G18"]
[Site "Halkidiki"]
[Date "2018.10.27"]
[Round "8"]
[White "Hrescak, Ivana"]
[Black "Koehler, Inken"]
[Result "0-1"]
[ECO "D11"]
[WhiteElo "2173"]
[BlackElo "1934"]
[Annotator "NA"]
[PlyCount "94"]
[EventDate "2018.10.20"]
[EventType "swiss"]
[EventCountry "GRE"]
[SourceTitle "playchess.com"]
[Source "ChessBase"]
[SourceQuality "1"]
[TimeControl "40/5400+30:1800+30"]

1. d4 {[%emt 0:00:00]} d5 {[%emt 0:00:00]} 2. c4 {[%emt 0:00:00]} c6 {[%emt 0:00:00]} 3. Nf3 {[%emt 0:00:20]} Nf6 {[%emt 0:00:00]} 4. g3 {[%emt 0:00:09]} Bf5 {[%emt 0:01:38]} 5. Nc3 {[%emt 0:00:07]} e6 {[%emt 0:01:47]} 6. Nh4 {[%emt 0:00:24]} Be4 7. f3 Bg6 8. Nxg6 {[%emt 0:03:01]} hxg6 {[%emt 0:03:45]} 9. Qb3 {[%emt 0:00:10]} Qb6 {[%emt 0:01:42]} 10. c5 {[%emt 0:00:24]} Qxb3 {[%emt 0:02:53]} 11. axb3 {[%emt 0:00:02]} Na6 {[%emt 0:00:40]} 12. Ra4 {[%emt 0:07:25]} Nc7 {[%emt 0:06:34]} 13. Bf4 {[%emt 0:13:10]} Kd7 {[%emt 0:02:48]} 14. Bxc7 {[%emt 0:06:07]} Kxc7 {[%emt 0:00:07]} 15. b4 {[%emt 0:00:10]} Be7 {[%emt 0:02:28]} 16. b5 {[%emt 0:01:57]} Nd7 {[%emt 0:06:30]} 17. e3 {[%emt 0:07:10]} e5 {[%emt 0:10:59]} 18. Be2 {[%emt 0:06:40]} Bg5 {[%emt 0:06:16]} 19. Kf2 {[%emt 0:14:15]} exd4 {[%emt 0:12:00]} 20. exd4 {[%emt 0:00:01]} Bd2 {[%emt 0:04:59]} 21. Nb1 {[%emt 0:10:31]} Bg5 {[%emt 0:01:47]} 22. f4 {[%emt 0:00:24]} Be7 {[%emt 0:01:08]} 23. Nc3 {[%emt 0:01:21]} f5 {[%emt 0:02:30]} 24. h4 {[%emt 0:06:24]} Rhe8 {[%emt 0:15:56]} 25. Rha1 {[%emt 0:02:55]} Nxc5 {[%emt 0:01:14]} 26. Rxa7 {[%emt 0:15:50]} Rxa7 {[%emt 0:01:18]} 27. Rxa7 {[%emt 0:00:02]} Kb8 {[%emt 0:02:18]} 28. Ra2 {[%emt 0:01:35]} Nb3 {[%emt 0:00:51]} 29. bxc6 {[%emt 0:01:28]} bxc6 {[%emt 0:00:09]} 30. h5 {[%emt 0:00:45]} Bf6 {[%emt 0:06:00]} 31. Bf3 {[%emt 0:01:30]} Bxd4+ {[%emt 0:00:48]} 32. Kg2 {[%emt 0:00:05]} Re1 {[%emt 0:01:19]} 33. hxg6 {[%emt 0:00:53]} Nd2 {[%emt 0:00:52]} 34. Bd1 {[%emt 0:01:09]} Bxc3 {[%emt 0:01:02]} 35. bxc3 {[%emt 0:00:26]} Rxd1 {[%emt 0:00:07]} 36. g4 {[%emt 0:00:35]} fxg4 {[%emt 0:00:38]} 37. Kg3 {[%emt 0:00:27]} Ne4+ {[%emt 0:01:18]} 38. Kxg4 {[%emt 0:00:27]} Rg1+ {[%emt 0:00:32]} 39. Kf5 {[%emt 0:00:27]} Nxc3 {[%emt 0:01:49]} 40. Rh2 {[%emt 0:00:00]} Ne4 {[%emt 0:00:00]} 41. Rh7 {[%emt 0:03:19]} Nd6+ {[%emt 0:01:38]} 42. Ke6 {[%emt 0:00:12]} Rxg6+ {[%emt 0:00:14]} 43. Kd7 {[%emt 0:00:04]} Nf5 {[%emt 0:01:08]} 44. Rh5 {[%emt 0:00:56]} Rd6+ {[%emt 0:01:34]} 45. Ke8 {[%emt 0:00:44]} g6 {[%emt 0:00:08]} 46. Rg5 {[%emt 0:00:43]} d4 {[%emt 0:00:59]} 47. Kf7 {[%emt 0:00:26]} d3 {[%emt 0:00:28]} 0-1

[Event "WYCC 2018 G18"]
[Site "Halkidiki"]
[Date "2018.10.27"]
[Round "8"]
[White "Gajcin, Marina"]
[Black "Sliwicka, Alicja"]
[Result "1-0"]
[ECO "C55"]
[WhiteElo "2153"]
[BlackElo "2264"]
[Annotator "NA"]
[PlyCount "157"]
[EventDate "2018.10.20"]
[EventType "swiss"]
[EventCountry "GRE"]
[SourceTitle "playchess.com"]
[Source "ChessBase"]
[SourceQuality "1"]
[TimeControl "40/5400+30:1800+30"]

1. e4 {[%emt 0:00:00]} e5 {[%emt 0:00:00]} 2. Nf3 {[%emt 0:02:52]} Nc6 {[%emt 0:00:00]} 3. Bc4 {[%emt 0:00:30]} Nf6 {[%emt 0:00:00]} 4. d3 {[%emt 0:00:09]} h6 {[%emt 0:00:00]} 5. c3 {[%emt 0:04:52]} d6 {[%emt 0:00:33]} 6. Nbd2 {[%emt 0:03:26]} g6 {[%emt 0:00:18]} 7. O-O {[%emt 0:01:10]} Bg7 {[%emt 0:00:08]} 8. Bb3 {[%emt 0:03:36]} O-O {[%emt 0:00:15]} 9. Nc4 {[%emt 0:03:05] LiveBook: 6 Partien} Kh8 {[%emt 0:03:43]} 10. Ne3 {[%emt 0:11:11]} Bd7 {[%emt 0:03:01]} 11. Bc2 {[%emt 0:01:30]} Qe7 {[%emt 0:02:24]} 12. Re1 {[%emt 0:00:39]} Rae8 {[%emt 0:01:18]} 13. b4 $14 {[%emt 0:03:45]} Nh7 {[%emt 0:06:47]} 14. b5 {[%emt 0:03:13]} Nb8 {[%emt 0:00:50]} 15. Rb1 {[%emt 0:00:57]} f5 {[%emt 0:04:07]} 16. Nd5 {[%emt 0:08:18]} Qd8 {[%emt 0:00:36]} 17. d4 {[%emt 0:13:04]} c6 {[%emt 0:04:48]} 18. bxc6 {[%emt 0:00:24]} bxc6 {[%emt 0:00:27]} 19. Nb4 {[%emt 0:03:55]} a5 {[%emt 0:03:21]} 20. Nd3 {[%emt 0:04:18]} fxe4 {[%emt 0:01:14]} 21. Rxe4 {[%emt 0:00:32]} Bf5 {[%emt 0:01:50]} 22. Nde1 {[%emt 0:04:03]} Bxe4 {[%emt 0:02:24]} 23. Bxe4 {[%emt 0:00:04]} Qf6 {[%emt 0:02:53]} 24. Be3 {[%emt 0:02:50]} Rf7 {[%emt 0:11:50]} 25. Qc2 {[%emt 0:05:16]} Nf8 {[%emt 0:01:27]} 26. dxe5 {[%emt 0:00:55]} dxe5 {[%emt 0:00:41]} 27. Nd3 {[%emt 0:00:27]} Nbd7 {[%emt 0:03:58]} 28. Rb7 {[%emt 0:00:25]} Qd8 {[%emt 0:13:31]} 29. Qb3 {[%emt 0:04:55]} Ree7 {[%emt 0:03:55]} 30. Nh4 {[%emt 0:00:29]} Rf6 {[%emt 0:02:04]} 31. Qb1 {[%emt 0:06:27]} Rd6 {[%emt 0:01:35]} 32. g3 {[%emt 0:01:26]} c5 {[%emt 0:07:36]} 33. Kg2 {[%emt 0:01:00]} c4 {[%emt 0:04:09]} 34. Ne1 {[%emt 0:01:56]} Ree6 {[%emt 0:02:48]} 35. Nef3 {[%emt 0:00:28]} Nb6 {[%emt 0:02:33]} 36. Bc5 {[%emt 0:01:48]} Rd1 {[%emt 0:05:32]} 37. Qb5 {[%emt 0:00:03]} Nbd7 {[%emt 0:00:48]} 38. Be3 {[%emt 0:01:33]} Rdd6 {[%emt 0:01:12]} 39. Qxc4 {[%emt 0:00:48]} Kh7 {[%emt 0:02:52]} 40. Qb5 {[%emt 0:00:00]} Nf6 {[%emt 0:00:00]} 41. Qb1 {[%emt 0:18:35]} Nxe4 {[%emt 0:02:34]} 42. Qxe4 {[%emt 0:00:01]} Qc8 {[%emt 0:04:40]} 43. Bxh6 {[%emt 0:01:49]} Rd7 {[%emt 0:07:05]} 44. Rxd7 {[%emt 0:06:43]} Qxd7 {[%emt 0:00:07]} 45. Be3 {[%emt 0:00:43]} Qc6 {[%emt 0:01:11]} 46. Qg4 {[%emt 0:01:07]} Kg8 {[%emt 0:00:16]} 47. c4 {[%emt 0:01:28]} Re8 {[%emt 0:02:10]} 48. c5 {[%emt 0:00:44]} Rb8 {[%emt 0:01:05]} 49. Qc4+ {[%emt 0:01:21]} Kh8 {[%emt 0:00:38]} 50. a3 {[%emt 0:02:51]} a4 {[%emt 0:00:15]} 51. Kh3 {[%emt 0:00:10]} Bf6 {[%emt 0:06:03]} 52. g4 {[%emt 0:01:46]} Bxh4 {[%emt 0:01:18]} 53. Nxh4 {[%emt 0:00:05]} Kg7 {[%emt 0:00:14]} 54. Qc3 {[%emt 0:02:21]} Nd7 {[%emt 0:00:22]} 55. Qd2 {[%emt 0:00:28]} Rh8 {[%emt 0:01:10]} 56. Kg3 {[%emt 0:00:39]} Nf6 {[%emt 0:01:17]} 57. f3 {[%emt 0:00:17]} Nd5 {[%emt 0:02:30]} 58. Bg5 {[%emt 0:00:37]} Qxc5 {[%emt 0:01:04]} 59. Qd1 {[%emt 0:00:28]} Qc6 {[%emt 0:01:06]} 60. Qe1 {[%emt 0:00:19]} Qd6 {[%emt 0:00:33]} 61. Qe4 {[%emt 0:00:10]} Ra8 {[%emt 0:01:59]} 62. Nxg6 {[%emt 0:00:28]} Qxg6 {[%emt 0:01:11]} 63. Qxe5+ {[%emt 0:00:15]} Kh7 {[%emt 0:03:23]} 64. Qxd5 {[%emt 0:00:02]} Rg8 {[%emt 0:00:30]} 65. h4 {[%emt 0:00:26]} Qb1 {[%emt 0:00:54]} 66. Be3 {[%emt 0:01:58]} Qb8+ {[%emt 0:00:31]} 67. Bf4 {[%emt 0:00:06]} Qb1 {[%emt 0:00:14]} 68. Qh5+ {[%emt 0:00:18]} Kg7 {[%emt 0:00:22]} 69. Be5+ {[%emt 0:00:08]} Kf8 {[%emt 0:00:14]} 70. Qh6+ {[%emt 0:00:17]} Kf7 {[%emt 0:00:38]} 71. Qf6+ {[%emt 0:00:29]} Ke8 {[%emt 0:00:05]} 72. Qe6+ {[%emt 0:00:29]} Kf8 {[%emt 0:00:06]} 73. Qc8+ {[%emt 0:00:32]} Ke7 {[%emt 0:00:47]} 74. Qxg8 {[%emt 0:00:41]} Qe1+ {[%emt 0:01:05]} 75. Kf4 {[%emt 0:00:06]} Qd2+ {[%emt 0:00:22]} 76. Kf5 {[%emt 0:00:38]} Qd3+ {[%emt 0:00:10]} 77. Kg5 {[%emt 0:00:18]} Qxf3 {[%emt 0:00:08]} 78. Qg7+ {[%emt 0:00:35]} Ke8 {[%emt 0:00:07]} 79. Qg6+ {[%emt 0:00:12]} 1-0

[Event "WYCC 2018 G18"]
[Site "Halkidiki"]
[Date "2018.10.27"]
[Round "8"]
[White "Arpita, Mukherjee"]
[Black "Antolak, Julia"]
[Result "1/2-1/2"]
[ECO "B50"]
[WhiteElo "2147"]
[BlackElo "2240"]
[Annotator "NA"]
[PlyCount "81"]
[EventDate "2018.10.20"]
[EventType "swiss"]
[EventCountry "GRE"]
[SourceTitle "playchess.com"]
[Source "ChessBase"]
[SourceQuality "1"]
[TimeControl "40/5400+30:1800+30"]

1. e4 {[%emt 0:00:00]} c5 {[%emt 0:00:00]} 2. Nf3 {[%emt 0:00:00]} d6 {[%emt 0:00:00]} 3. c3 {[%emt 0:00:06]} Nf6 {[%emt 0:00:00]} 4. Be2 {[%emt 0:00:06]} Bd7 {[%emt 0:00:31]} 5. Qc2 {[%emt 0:00:10]} Qc7 {[%emt 0:00:34]} 6. d4 {[%emt 0:00:44]} cxd4 {[%emt 0:01:09]} 7. Nxd4 {[%emt 0:00:07]} a6 {[%emt 0:08:42]} 8. Bg5 $11 {[%emt 0:03:20]} e6 {[%emt 0:08:00]} 9. Nd2 {[%emt 0:03:47]} Be7 {[%emt 0:01:43]} 10. O-O {[%emt 0:01:55]} Nc6 {[%emt 0:03:26]} 11. N2b3 {[%emt 0:06:04]} O-O {[%emt 0:01:51]} 12. a4 {[%emt 0:10:07]} e5 {[%emt 0:13:02]} 13. Nxc6 {[%emt 0:10:01]} Bxc6 {[%emt 0:02:39]} 14. Bxf6 {[%emt 0:00:46]} Bxf6 {[%emt 0:00:08]} 15. Rfd1 {[%emt 0:00:24]} Rac8 {[%emt 0:05:23]} 16. a5 {[%emt 0:15:07]} Bd7 {[%emt 0:06:24]} 17. Nc1 {[%emt 0:13:28]} Be6 {[%emt 0:01:43]} 18. Nd3 {[%emt 0:00:17]} Qc4 {[%emt 0:16:05]} 19. Qd2 {[%emt 0:17:51]} Qxe4 {[%emt 0:04:05]} 20. Nb4 {[%emt 0:00:07]} Bg5 {[%emt 0:12:32]} 21. Qxg5 {[%emt 0:02:01]} Qxe2 {[%emt 0:00:06]} 22. Rd2 {[%emt 0:00:42]} Qb5 {[%emt 0:02:14]} 23. Rxd6 {[%emt 0:00:38]} h6 {[%emt 0:00:08]} 24. Qd2 {[%emt 0:00:22]} Qc5 {[%emt 0:00:50]} 25. Nd5 {[%emt 0:01:34]} Kh8 {[%emt 0:03:24]} 26. Nb6 {[%emt 0:03:07]} Rc6 {[%emt 0:00:58]} 27. Rxc6 {[%emt 0:00:31]} Qxc6 {[%emt 0:00:21]} 28. b4 {[%emt 0:00:18]} Qc7 {[%emt 0:02:34]} 29. Rd1 {[%emt 0:01:21]} Re8 {[%emt 0:00:15]} 30. c4 {[%emt 0:01:02]} f5 {[%emt 0:00:59]} 31. Qd6 {[%emt 0:01:52]} Qf7 {[%emt 0:01:31]} 32. c5 {[%emt 0:01:42]} e4 {[%emt 0:00:28]} 33. Nd5 {[%emt 0:02:06]} Bxd5 {[%emt 0:01:35]} 34. Qxd5 {[%emt 0:00:01]} Qg6 {[%emt 0:02:07]} 35. Qxb7 {[%emt 0:01:29]} f4 {[%emt 0:00:04]} 36. Rd6 {[%emt 0:01:36]} Qg5 {[%emt 0:01:31]} 37. Qd5 {[%emt 0:01:36]} Qh4 {[%emt 0:00:46]} 38. Re6 {[%emt 0:01:28]} Rd8 {[%emt 0:00:14]} 39. Rd6 {[%emt 0:00:05]} Re8 {[%emt 0:00:03]} 40. Re6 {[%emt 0:00:00]} Rd8 {[%emt 0:00:00]} 41. Rd6 {[%emt 0:00:44]} 1/2-1/2

[Event "WYCC 2018 G18"]
[Site "Halkidiki"]
[Date "2018.10.27"]
[Round "8"]
[White "Tejaswini, Sagar"]
[Black "Hng, Mei-En Emmanuelle"]
[Result "1-0"]
[ECO "B43"]
[WhiteElo "2139"]
[BlackElo "2020"]
[Annotator "NA"]
[PlyCount "75"]
[EventDate "2018.10.20"]
[EventType "swiss"]
[EventCountry "GRE"]
[SourceTitle "playchess.com"]
[Source "ChessBase"]
[SourceQuality "1"]
[TimeControl "40/5400+30:1800+30"]

1. e4 {[%emt 0:00:00]} c5 {[%emt 0:00:00]} 2. Nf3 {[%emt 0:00:00]} e6 {[%emt 0:00:00]} 3. d4 {[%emt 0:00:00]} cxd4 {[%emt 0:00:00]} 4. Nxd4 {[%emt 0:00:00]} a6 {[%emt 0:00:00]} 5. Nc3 {[%emt 0:00:00]} Qc7 {[%emt 0:00:00]} 6. Bd3 {[%emt 0:00:00]} Nf6 {[%emt 0:00:33]} 7. O-O {[%emt 0:00:34]} b5 {[%emt 0:01:35]} 8. Re1 {[%emt 0:01:25]} b4 {[%emt 0:06:27]} (8... d6 $14) 9. Nb1 {[%emt 0:04:11]} Bd6 {[%emt 0:01:53]} 10. h3 {[%emt 0:01:33]} Bb7 {[%emt 0:01:14]} 11. a3 $16 {[%emt 0:03:02]} Be5 {[%emt 0:03:20]} 12. Nf3 {[%emt 0:02:39]} bxa3 {[%emt 0:06:09]} 13. Nxa3 {[%emt 0:04:25]} Nc6 {[%emt 0:05:44]} 14. Nc4 {[%emt 0:04:52]} O-O {[%emt 0:00:57]} 15. Nfxe5 {[%emt 0:06:51]} Nxe5 {[%emt 0:00:07]} 16. Bf4 {[%emt 0:01:14]} d6 {[%emt 0:02:03]} 17. Nxe5 {[%emt 0:02:11]} dxe5 {[%emt 0:00:07]} 18. Bd2 {[%emt 0:00:22]} a5 {[%emt 0:03:52]} 19. Qe2 {[%emt 0:03:52]} Nd7 {[%emt 0:06:25]} 20. Be3 {[%emt 0:04:41]} Kh8 {[%emt 0:10:35]} 21. Ra3 {[%emt 0:03:45]} f5 {[%emt 0:04:30]} 22. f3 {[%emt 0:04:57]} Rf7 {[%emt 0:15:25]} 23. Bf2 {[%emt 0:07:46]} f4 {[%emt 0:08:11]} 24. Rea1 {[%emt 0:05:11]} Rff8 {[%emt 0:07:09]} 25. Qe1 {[%emt 0:03:59]} Nb8 {[%emt 0:04:00]} 26. Rxa5 {[%emt 0:01:34]} Nc6 {[%emt 0:01:00]} 27. Rxa8 {[%emt 0:00:47]} Bxa8 {[%emt 0:00:29]} 28. b4 {[%emt 0:02:47]} Nd4 {[%emt 0:01:49]} 29. c3 {[%emt 0:02:06]} Nc6 {[%emt 0:00:19]} 30. b5 {[%emt 0:01:08]} Qd7 {[%emt 0:01:54]} 31. Be2 {[%emt 0:01:37]} Ne7 {[%emt 0:00:07]} 32. c4 {[%emt 0:00:44]} Bb7 {[%emt 0:01:16]} 33. c5 {[%emt 0:01:30]} Bc8 {[%emt 0:02:22]} 34. Rd1 {[%emt 0:03:25]} Qc7 {[%emt 0:01:54]} 35. Qd2 {[%emt 0:00:25]} Ng8 {[%emt 0:01:53]} 36. Qd6 {[%emt 0:03:08]} Qf7 {[%emt 0:01:01]} 37. c6 {[%emt 0:01:11]} Nf6 {[%emt 0:02:21]} 38. Bc5 {[%emt 0:00:23]} 1-0

[Event "WYCC 2018 G18"]
[Site "Halkidiki"]
[Date "2018.10.27"]
[Round "8"]
[White "Redondo Benavente, Ana"]
[Black "Gillis Onieva, Celia"]
[Result "1/2-1/2"]
[ECO "C00"]
[WhiteElo "2055"]
[BlackElo "1892"]
[Annotator "NA"]
[PlyCount "114"]
[EventDate "2018.10.20"]
[EventType "swiss"]
[EventCountry "GRE"]
[SourceTitle "playchess.com"]
[Source "ChessBase"]
[SourceQuality "1"]
[TimeControl "40/5400+30:1800+30"]

1. e4 {[%emt 0:00:00]} e6 {[%emt 0:00:00]} 2. d4 {[%emt 0:00:00]} d5 {[%emt 0:00:00]} 3. Bd3 {[%emt 0:00:49]} dxe4 {[%emt 0:00:05]} 4. Bxe4 {[%emt 0:00:06]} Nf6 {[%emt 0:00:08]} 5. Bf3 {[%emt 0:00:13]} c5 {[%emt 0:00:18]} 6. Ne2 {[%emt 0:00:41]} Be7 {[%emt 0:00:27]} 7. Be3 {[%emt 0:02:54]} O-O {[%emt 0:00:12]} 8. O-O {[%emt 0:01:32]} Nc6 9. c3 {[%emt 0:08:20]} Qc7 {[%emt 0:07:52]} 10. Ng3 {[%emt 0:03:59]} Rd8 {[%emt 0:03:01]} 11. Qc1 {[%emt 0:07:08]} Nd5 {[%emt 0:08:41]} 12. Bxd5 {[%emt 0:03:10]} Rxd5 {[%emt 0:00:20]} 13. c4 {[%emt 0:08:10]} Rd8 {[%emt 0:01:09]} 14. dxc5 {[%emt 0:00:05]} Nb4 {[%emt 0:14:49]} 15. Nc3 {[%emt 0:03:39]} Bxc5 {[%emt 0:02:05]} 16. Bxc5 {[%emt 0:11:23]} Nd3 {[%emt 0:04:05]} 17. Qe3 {[%emt 0:06:08]} Qxc5 {[%emt 0:00:49]} 18. Qxc5 {[%emt 0:00:15]} Nxc5 {[%emt 0:00:06]} 19. Rad1 {[%emt 0:00:20]} Bd7 {[%emt 0:08:04]} 20. Rd6 {[%emt 0:08:50]} Kf8 {[%emt 0:04:12]} 21. Rfd1 {[%emt 0:00:25]} Ke7 {[%emt 0:00:47]} 22. b4 {[%emt 0:01:53]} Na6 {[%emt 0:00:06]} 23. a3 {[%emt 0:03:22]} Rac8 {[%emt 0:00:59]} 24. c5 {[%emt 0:00:20]} Nc7 {[%emt 0:03:59]} 25. f4 {[%emt 0:05:17]} Ne8 {[%emt 0:04:43]} 26. R6d3 {[%emt 0:00:03]} Nf6 {[%emt 0:02:53]} 27. Nge4 {[%emt 0:00:53]} Nxe4 {[%emt 0:14:34]} 28. Nxe4 {[%emt 0:00:02]} Bc6 {[%emt 0:04:31]} 29. Nc3 {[%emt 0:06:27]} Rxd3 {[%emt 0:06:34]} 30. Rxd3 {[%emt 0:00:01]} a6 {[%emt 0:01:58]} 31. a4 {[%emt 0:02:47]} Be8 {[%emt 0:03:05]} 32. a5 {[%emt 0:03:58]} Bc6 {[%emt 0:00:48]} 33. Kf2 {[%emt 0:00:13]} h6 {[%emt 0:00:54]} 34. Ne2 {[%emt 0:05:11]} Bb5 {[%emt 0:00:56]} 35. Rd6 {[%emt 0:00:30]} Bxe2 {[%emt 0:01:09]} 36. Kxe2 {[%emt 0:00:02]} Rc6 {[%emt 0:00:20]} 37. Rd3 {[%emt 0:02:57]} Rc7 {[%emt 0:02:06]} 38. Ke3 {[%emt 0:00:13]} Rd7 {[%emt 0:00:23]} 39. Rc3 {[%emt 0:01:42]} f6 {[%emt 0:00:56]} 40. g3 {[%emt 0:00:00]} f5 {[%emt 0:00:00]} 41. h3 {[%emt 0:12:53]} e5 {[%emt 0:08:03]} 42. fxe5 {[%emt 0:03:34]} Ke6 {[%emt 0:00:59]} 43. c6 {[%emt 0:01:00]} Rc7 {[%emt 0:07:01]} 44. cxb7 {[%emt 0:05:26]} Rxb7 {[%emt 0:00:55]} 45. Rc6+ {[%emt 0:00:18]} Kxe5 {[%emt 0:00:07]} 46. Rxa6 {[%emt 0:00:03]} Rxb4 {[%emt 0:00:08]} 47. Rg6 {[%emt 0:01:11]} Rb3+ {[%emt 0:01:58]} 48. Ke2 {[%emt 0:00:16]} Ra3 {[%emt 0:01:43]} 49. a6 {[%emt 0:00:22]} f4 {[%emt 0:04:14]} 50. gxf4+ {[%emt 0:00:37]} Kxf4 {[%emt 0:00:14]} 51. h4 {[%emt 0:02:43]} h5 {[%emt 0:02:21]} 52. Rxg7 {[%emt 0:01:31]} Rxa6 {[%emt 0:00:06]} 53. Rg5 {[%emt 0:00:16]} Ra2+ {[%emt 0:00:04]} 54. Kd3 {[%emt 0:00:39]} Rh2 {[%emt 0:00:13]} 55. Rxh5 {[%emt 0:00:06]} Kg4 {[%emt 0:00:07]} 56. Rh8 {[%emt 0:00:11]} Rxh4 {[%emt 0:00:05]} 57. Rxh4+ {[%emt 0:00:04]} Kxh4 {[%emt 0:00:05]} 1/2-1/2

[Event "WYCC 2018 G18"]
[Site "Halkidiki"]
[Date "2018.10.27"]
[Round "8"]
[White "Avetisyan, Mariam"]
[Black "Dimitrova, Aleksandra"]
[Result "1/2-1/2"]
[ECO "A05"]
[WhiteElo "2049"]
[BlackElo "2228"]
[Annotator "NA"]
[PlyCount "111"]
[EventDate "2018.10.20"]
[EventType "swiss"]
[EventCountry "GRE"]
[SourceTitle "playchess.com"]
[Source "ChessBase"]
[SourceQuality "1"]
[TimeControl "40/5400+30:1800+30"]

1. Nf3 {[%emt 0:00:00]} Nf6 {[%emt 0:00:00]} 2. d4 {[%emt 0:00:00]} e6 {[%emt 0:00:00]} 3. g3 {[%emt 0:00:00]} b5 {[%emt 0:00:23]} 4. Qd3 {[%emt 0:02:53]} a6 {[%emt 0:02:13]} 5. a4 {[%emt 0:06:45]} b4 {[%emt 0:03:03] LiveBook: 19 Games} 6. c4 {[%emt 0:04:52]} Bb7 $11 {[%emt 0:04:43]} 7. Nbd2 {[%emt 0:02:59]} c5 {[%emt 0:03:05]} 8. dxc5 {[%emt 0:27:32]} Bxc5 {[%emt 0:01:02]} 9. Bg2 {[%emt 0:04:23]} d5 {[%emt 0:07:00]} 10. O-O {[%emt 0:02:33]} Nbd7 {[%emt 0:06:30]} 11. cxd5 {[%emt 0:07:25]} Bxd5 {[%emt 0:02:13]} 12. e4 {[%emt 0:06:43]} Bb7 {[%emt 0:06:18]} 13. a5 {[%emt 0:02:59]} Be7 {[%emt 0:04:44]} 14. e5 {[%emt 0:04:02]} Nd5 {[%emt 0:00:42]} 15. Ne4 {[%emt 0:01:41]} h6 {[%emt 0:07:51]} 16. Be3 {[%emt 0:03:13]} Nxe3 {[%emt 0:05:00]} 17. Qxe3 {[%emt 0:01:00]} O-O {[%emt 0:01:24]} 18. Rfd1 {[%emt 0:00:37]} Bd5 {[%emt 0:01:21]} 19. Qd4 {[%emt 0:03:29]} Qc7 {[%emt 0:05:18]} 20. Rdc1 {[%emt 0:01:45]} Qa7 {[%emt 0:05:40]} 21. Qxa7 {[%emt 0:03:31]} Rxa7 {[%emt 0:00:02]} 22. Nd6 {[%emt 0:01:54]} Raa8 {[%emt 0:11:16]} 23. Nc4 {[%emt 0:02:48]} Rab8 {[%emt 0:09:51]} 24. Nd4 {[%emt 0:04:17]} Rfc8 {[%emt 0:01:33]} 25. Bxd5 {[%emt 0:01:23]} exd5 {[%emt 0:00:02]} 26. Ne3 {[%emt 0:01:14]} Nxe5 {[%emt 0:02:01]} 27. Nxd5 {[%emt 0:00:09]} Bf8 {[%emt 0:02:02]} 28. Nf5 {[%emt 0:01:51]} Kh7 {[%emt 0:02:33]} 29. Nb6 {[%emt 0:01:01]} Rd8 {[%emt 0:01:04]} 30. Ne3 {[%emt 0:00:40]} Rd2 {[%emt 0:01:12]} 31. Nbc4 {[%emt 0:00:16]} Nxc4 {[%emt 0:00:23]} 32. Nxc4 {[%emt 0:00:03]} Re2 {[%emt 0:00:45]} 33. Kf1 {[%emt 0:00:10]} Re6 {[%emt 0:02:37]} 34. Re1 {[%emt 0:01:19]} b3 {[%emt 0:01:08]} 35. Rxe6 {[%emt 0:00:34]} fxe6 {[%emt 0:00:01]} 36. Re1 {[%emt 0:00:27]} Rc8 {[%emt 0:02:08]} 37. Re4 {[%emt 0:00:07]} Kg6 {[%emt 0:00:42]} 38. Ke2 {[%emt 0:00:10]} Kf6 {[%emt 0:00:39]} 39. Kd3 {[%emt 0:00:26]} Bc5 {[%emt 0:00:50]} 40. Kc3 {[%emt 0:00:00]} g5 {[%emt 0:00:00]} 41. f4 {[%emt 0:07:16]} Bg1 {[%emt 0:09:30]} 42. h3 {[%emt 0:11:41]} Bh2 {[%emt 0:01:20]} 43. fxg5+ {[%emt 0:00:16]} hxg5 {[%emt 0:00:14]} 44. Re3 {[%emt 0:01:45]} Rh8 {[%emt 0:01:17]} 45. g4 {[%emt 0:00:41]} Bf4 {[%emt 0:00:30]} 46. Rd3 {[%emt 0:00:07]} Rb8 {[%emt 0:04:25]} 47. Nb6 {[%emt 0:01:00]} Rb7 {[%emt 0:01:58]} 48. Kxb3 {[%emt 0:04:16]} Ke5 {[%emt 0:02:01]} 49. Kc3 {[%emt 0:02:49]} Ke4 {[%emt 0:01:33]} 50. b3 {[%emt 0:01:30]} Be5+ {[%emt 0:06:57]} 51. Kc2 {[%emt 0:00:14]} Bd4 {[%emt 0:00:48]} 52. Nc4 {[%emt 0:00:28]} Rd7 {[%emt 0:00:37]} 53. Nd2+ {[%emt 0:01:45]} Kf4 {[%emt 0:00:44]} 54. Rf3+ {[%emt 0:00:52]} Ke5 {[%emt 0:00:01]} 55. Nc4+ {[%emt 0:01:36]} Ke4 {[%emt 0:00:29]} 56. Nd2+ {[%emt 0:02:57]} 1/2-1/2